[Event "Titled Tuesday Blitz June 28 Early 2022"]
[White "Yaniuk, Volodymyr"]
[Black "Silvestre, Christian"]
[WhiteFideId "14133083"]
[BlackFideId "30956269"]
[WhiteElo "2207"]
[BlackElo "2346"]
[Result "1-0"]
[Round "05"]
[TimeControl "180+1"]
[Date "2022.06.28"]
[WhiteClock "0:00:36"]
[BlackClock "0:00:09"]

1. d4 {[%clk 0:02:09]}  c6 {[%clk 0:03:00]} 2. c4 {[%clk 0:02:08]}  d5 {[%clk 0:02:58]} 3. cxd5 {[%clk 0:02:08]}  cxd5 {[%clk 0:02:58]} 4. Bf4 {[%clk 0:02:09]}  Nf6 {[%clk 0:02:58]} 5. e3 {[%clk 0:02:09]}  Nc6 {[%clk 0:02:56]} 6. Nc3 {[%clk 0:02:09]}  a6 {[%clk 0:02:54]} 7. Rc1 {[%clk 0:02:08]}  e6 {[%clk 0:02:51]} 8. Bd3 {[%clk 0:02:05]}  Bd6 {[%clk 0:02:51]} 9. Bxd6 {[%clk 0:02:05]}  Qxd6 {[%clk 0:02:52]} 10. f4 {[%clk 0:02:06]}  Bd7 {[%clk 0:02:43]} 11. Nf3 {[%clk 0:02:06]}  Rc8 {[%clk 0:02:42]} 12. O-O {[%clk 0:02:05]}  h6 {[%clk 0:02:35]} 13. Ne5 {[%clk 0:02:04]}  Ne7 {[%clk 0:02:30]} 14. Qb3 {[%clk 0:02:00]}  b5 {[%clk 0:02:29]} 15. Ne2 {[%clk 0:01:51]}  O-O {[%clk 0:02:25]} 16. h3 {[%clk 0:01:49]}  Rfd8 {[%clk 0:02:04]} 17. a3 {[%clk 0:01:46]}  Be8 {[%clk 0:02:04]} 18. Qb4 {[%clk 0:01:46]}  Qxb4 {[%clk 0:01:57]} 19. axb4 {[%clk 0:01:47]}  Nc6 {[%clk 0:01:42]} 20. Nxc6 {[%clk 0:01:45]}  Bxc6 {[%clk 0:01:42]} 21. Rc3 {[%clk 0:01:44]}  Bb7 {[%clk 0:01:32]} 22. Rfc1 {[%clk 0:01:41]}  Kf8 {[%clk 0:01:14]} 23. Kf2 {[%clk 0:01:38]}  Ke7 {[%clk 0:01:13]} 24. Ke1 {[%clk 0:01:38]}  Rxc3 {[%clk 0:01:09]} 25. bxc3 {[%clk 0:01:36]}  Rc8 {[%clk 0:01:08]} 26. Kd2 {[%clk 0:01:35]}  Nd7 {[%clk 0:01:06]} 27. Ra1 {[%clk 0:01:33]}  Nb6 {[%clk 0:01:04]} 28. Ra3 {[%clk 0:01:32]}  f6 {[%clk 0:01:03]} 29. Nc1 {[%clk 0:01:32]}  Nc4+ {[%clk 0:00:56]} 30. Bxc4 {[%clk 0:01:31]}  dxc4 {[%clk 0:00:57]} 31. g3 {[%clk 0:01:30]}  e5 {[%clk 0:00:51]} 32. Ne2 {[%clk 0:01:29]}  Ke6 {[%clk 0:00:44]} 33. e4 {[%clk 0:01:25]}  Bxe4 {[%clk 0:00:27]} 34. Rxa6+ {[%clk 0:01:23]}  Rc6 {[%clk 0:00:27]} 35. Ra7 {[%clk 0:01:18]}  g5 {[%clk 0:00:26]} 36. Ke3 {[%clk 0:01:12]}  Bd3 {[%clk 0:00:23]} 37. fxe5 {[%clk 0:01:09]}  Bxe2 {[%clk 0:00:22]} 38. Kxe2 {[%clk 0:01:06]}  fxe5 {[%clk 0:00:21]} 39. dxe5 {[%clk 0:01:07]}  Rb6 {[%clk 0:00:20]} 40. Rh7 {[%clk 0:01:05]}  Kxe5 {[%clk 0:00:20]} 41. Ke3 {[%clk 0:01:02]}  Kf5 {[%clk 0:00:20]} 42. g4+ {[%clk 0:01:00]}  Kg6 {[%clk 0:00:20]} 43. Rc7 {[%clk 0:00:59]}  h5 {[%clk 0:00:18]} 44. Ke4 {[%clk 0:00:59]}  hxg4 {[%clk 0:00:18]} 45. hxg4 {[%clk 0:00:59]}  Rf6 {[%clk 0:00:17]} 46. Rb7 {[%clk 0:00:55]}  Rf4+ {[%clk 0:00:16]} 47. Ke3 {[%clk 0:00:53]}  Rxg4 {[%clk 0:00:17]} 48. Rxb5 {[%clk 0:00:53]}  Rh4 {[%clk 0:00:13]} 49. Rc5 {[%clk 0:00:51]}  Kf6 {[%clk 0:00:13]} 50. b5 {[%clk 0:00:51]}  Rh7 {[%clk 0:00:07]} 51. Rxc4 {[%clk 0:00:40]}  Ke5 {[%clk 0:00:05]} 52. Rc5+ {[%clk 0:00:40]}  Kd6 {[%clk 0:00:05]} 53. Rxg5 {[%clk 0:00:40]}  Rb7 {[%clk 0:00:05]} 54. Kd4 {[%clk 0:00:39]}  Kc7 {[%clk 0:00:06]} 55. c4 {[%clk 0:00:38]}  Kb6 {[%clk 0:00:07]} 56. Rg6+ {[%clk 0:00:38]}  Ka5 {[%clk 0:00:07]} 57. Kc3 {[%clk 0:00:38]}  Rxb5 {[%clk 0:00:04]} 58. cxb5 {[%clk 0:00:36]}  Kxb5 {[%clk 0:00:05]} 59. Rg5+ {[%clk 0:00:35]}  Kc6 {[%clk 0:00:05]} 60. Kd4 {[%clk 0:00:35]}  Kd6 {[%clk 0:00:05]} 61. Rg6+ {[%clk 0:00:35]}  Ke7 {[%clk 0:00:05]} 62. Kd5 {[%clk 0:00:35]}  Kf7 {[%clk 0:00:06]} 63. Ra6 {[%clk 0:00:35]}  Kg7 {[%clk 0:00:07]} 64. Ke5 {[%clk 0:00:35]}  Kh7 {[%clk 0:00:07]} 65. Kf5 {[%clk 0:00:36]}  Kg8 {[%clk 0:00:08]} 66. Ra7 {[%clk 0:00:34]}  Kf8 {[%clk 0:00:09]} 67. Ke6 {[%clk 0:00:35]}  Kg8 {[%clk 0:00:09]} 68. Kf6 {[%clk 0:00:35]}  Kh8 {[%clk 0:00:09]} 69. Kg6 {[%clk 0:00:35]}  Kg8 {[%clk 0:00:09]} 70. Ra8# {[%clk 0:00:36]} 1-0


[Site "https://www.chess.com"]

[Event "Titled Tuesday Blitz June 28 Early 2022"]
[White "Zhigalko, Sergei"]
[Black "Ivanov, Mike"]
[WhiteFideId "13502956"]
[BlackFideId "2613158"]
[WhiteElo "2662"]
[BlackElo "2182"]
[Result "1/2-1/2"]
[Round "05"]
[TimeControl "180+1"]
[Date "2022.06.28"]
[WhiteClock "0:00:12"]
[BlackClock "0:00:07"]

1. e4 {[%clk 0:03:00]}  e6 {[%clk 0:02:59]} 2. d4 {[%clk 0:03:01]}  d5 {[%clk 0:03:00]} 3. e5 {[%clk 0:03:02]}  c5 {[%clk 0:02:59]} 4. c3 {[%clk 0:03:02]}  Nc6 {[%clk 0:03:00]} 5. Nf3 {[%clk 0:03:03]}  Bd7 {[%clk 0:03:00]} 6. Be2 {[%clk 0:03:03]}  Qb6 {[%clk 0:02:55]} 7. O-O {[%clk 0:03:01]}  Nh6 {[%clk 0:02:37]} 8. dxc5 {[%clk 0:03:00]}  Bxc5 {[%clk 0:02:34]} 9. b4 {[%clk 0:03:01]}  Be7 {[%clk 0:02:34]} 10. Bd3 {[%clk 0:03:02]}  Nf5 {[%clk 0:02:14]} 11. Nbd2 {[%clk 0:02:58]}  Rc8 {[%clk 0:01:52]} 12. Nb3 {[%clk 0:02:57]}  O-O {[%clk 0:01:33]} 13. Re1 {[%clk 0:02:53]}  Rfd8 {[%clk 0:01:17]} 14. g4 {[%clk 0:02:46]}  Nh4 {[%clk 0:01:13]} 15. Bf4 {[%clk 0:02:14]}  Nxf3+ {[%clk 0:00:59]} 16. Qxf3 {[%clk 0:02:13]}  a5 {[%clk 0:01:00]} 17. a3 {[%clk 0:02:12]}  axb4 {[%clk 0:00:37]} 18. axb4 {[%clk 0:02:12]}  Ra8 {[%clk 0:00:37]} 19. Rad1 {[%clk 0:02:00]}  Ra3 {[%clk 0:00:35]} 20. Bc2 {[%clk 0:02:00]}  Rc8 {[%clk 0:00:31]} 21. Qd3 {[%clk 0:01:49]}  g6 {[%clk 0:00:32]} 22. Rd2 {[%clk 0:01:28]}  d4 {[%clk 0:00:28]} 23. Red1 {[%clk 0:01:09]}  Be8 {[%clk 0:00:27]} 24. b5 {[%clk 0:00:39]}  dxc3 {[%clk 0:00:25]} 25. Be3 {[%clk 0:00:35]}  Qc7 {[%clk 0:00:21]} 26. Qxc3 {[%clk 0:00:28]}  Nxe5 {[%clk 0:00:21]} 27. Qxc7 {[%clk 0:00:21]}  Rxc7 {[%clk 0:00:20]} 28. Rd8 {[%clk 0:00:03]}  Bxd8 {[%clk 0:00:17]} 29. Rxd8 {[%clk 0:00:04]}  Kf8 {[%clk 0:00:12]} 30. Nd4 {[%clk 0:00:02]}  Ke7 {[%clk 0:00:09]} 31. Rb8 {[%clk 0:00:02]}  Nf3+ {[%clk 0:00:04]} 32. Kg2 {[%clk 0:00:02]}  Nxd4 {[%clk 0:00:04]} 33. Bxd4 {[%clk 0:00:01]}  Rxc2 {[%clk 0:00:04]} 34. Rxb7+ {[%clk 0:00:02]}  Kd8 {[%clk 0:00:04]} 35. Be5 {[%clk 0:00:01]}  Raa2 {[%clk 0:00:04]} 36. Bd4 {[%clk 0:00:01]}  Rd2 {[%clk 0:00:03]} 37. Bb6+ {[%clk 0:00:01]}  Kc8 {[%clk 0:00:04]} 38. Re7 {[%clk 0:00:01]}  Bd7 {[%clk 0:00:04]} 39. Rxf7 {[%clk 0:00:02]}  Rdb2 {[%clk 0:00:03]} 40. Be3 {[%clk 0:00:01]}  Rxb5 {[%clk 0:00:03]} 41. Rxh7 {[%clk 0:00:02]}  Bc6+ {[%clk 0:00:03]} 42. Kg3 {[%clk 0:00:03]}  Bd5 {[%clk 0:00:04]} 43. h4 {[%clk 0:00:03]}  Rb3 {[%clk 0:00:04]} 44. Rg7 {[%clk 0:00:03]}  Rb1 {[%clk 0:00:04]} 45. Rxg6 {[%clk 0:00:03]}  Ra4 {[%clk 0:00:04]} 46. h5 {[%clk 0:00:02]}  Rg1+ {[%clk 0:00:04]} 47. Kh4 {[%clk 0:00:03]}  Rh1+ {[%clk 0:00:04]} 48. Kg5 {[%clk 0:00:04]}  Rg1 {[%clk 0:00:05]} 49. Kh4 {[%clk 0:00:02]}  Bf3 {[%clk 0:00:05]} 50. Rg8+ {[%clk 0:00:02]}  Kd7 {[%clk 0:00:05]} 51. h6 {[%clk 0:00:03]}  Rgxg4+ {[%clk 0:00:04]} 52. Rxg4 {[%clk 0:00:03]}  Rxg4+ {[%clk 0:00:04]} 53. Kh3 {[%clk 0:00:04]}  Rg1 {[%clk 0:00:05]} 54. Bd4 {[%clk 0:00:03]}  Be4 {[%clk 0:00:04]} 55. Bg7 {[%clk 0:00:03]}  Kc6 {[%clk 0:00:04]} 56. Kh2 {[%clk 0:00:04]}  Rg2+ {[%clk 0:00:04]} 57. Kh3 {[%clk 0:00:04]}  Rg6 {[%clk 0:00:05]} 58. h7 {[%clk 0:00:04]}  Bf5+ {[%clk 0:00:06]} 59. Kh4 {[%clk 0:00:04]}  Rg4+ {[%clk 0:00:06]} 60. Kh5 {[%clk 0:00:04]}  Rg1 {[%clk 0:00:04]} 61. h8=Q {[%clk 0:00:05]}  Rh1+ {[%clk 0:00:04]} 62. Kg5 {[%clk 0:00:06]}  Rxh8 {[%clk 0:00:04]} 63. Bxh8 {[%clk 0:00:07]}  Kd5 {[%clk 0:00:05]} 64. f4 {[%clk 0:00:07]}  Ke4 {[%clk 0:00:04]} 65. Be5 {[%clk 0:00:08]}  Ke3 {[%clk 0:00:05]} 66. Bf6 {[%clk 0:00:09]}  Ke4 {[%clk 0:00:06]} 67. Be5 {[%clk 0:00:10]}  Ke3 {[%clk 0:00:06]} 68. Bf6 {[%clk 0:00:11]}  Ke4 {[%clk 0:00:07]} 69. Be5 {[%clk 0:00:12]} 1/2-1/2


[Site "https://www.chess.com"]

[Event "Titled Tuesday Blitz June 28 Early 2022"]
[White "Zochowski, Kacper"]
[Black "Vlassov, Nikolai"]
[WhiteFideId "1125494"]
[BlackFideId "4103360"]
[WhiteElo "2214"]
[BlackElo "2407"]
[Result "0-1"]
[Round "05"]
[TimeControl "180+1"]
[Date "2022.06.28"]
[WhiteClock "0:00:20"]
[BlackClock "0:00:10"]

1. d4 {[%clk 0:03:00]}  Nf6 {[%clk 0:02:59]} 2. Bg5 {[%clk 0:03:00]}  e6 {[%clk 0:02:59]} 3. Nd2 {[%clk 0:03:00]}  h6 {[%clk 0:02:59]} 4. Bh4 {[%clk 0:03:00]}  c5 {[%clk 0:02:59]} 5. e3 {[%clk 0:03:00]}  b6 {[%clk 0:02:53]} 6. c3 {[%clk 0:02:58]}  Bb7 {[%clk 0:02:53]} 7. f4 {[%clk 0:02:57]}  Be7 {[%clk 0:02:49]} 8. Ngf3 {[%clk 0:02:57]}  g5 {[%clk 0:02:43]} 9. fxg5 {[%clk 0:02:42]}  Ng4 {[%clk 0:02:42]} 10. Qe2 {[%clk 0:02:35]}  hxg5 {[%clk 0:02:38]} 11. Bg3 {[%clk 0:02:35]}  cxd4 {[%clk 0:02:36]} 12. exd4 {[%clk 0:02:34]}  d6 {[%clk 0:02:30]} 13. O-O-O {[%clk 0:02:30]}  Nd7 {[%clk 0:02:30]} 14. Ne4 {[%clk 0:02:20]}  Bxe4 {[%clk 0:02:06]} 15. Qxe4 {[%clk 0:02:18]}  Ngf6 {[%clk 0:02:06]} 16. Qc2 {[%clk 0:02:09]}  a6 {[%clk 0:02:03]} 17. Bd3 {[%clk 0:02:06]}  b5 {[%clk 0:02:01]} 18. Kb1 {[%clk 0:02:01]}  Nd5 {[%clk 0:01:55]} 19. Be4 {[%clk 0:01:54]}  Ne3 {[%clk 0:01:48]} 20. Qd3 {[%clk 0:01:27]}  Nxd1 {[%clk 0:01:47]} 21. Bxa8 {[%clk 0:01:25]}  Nxc3+ {[%clk 0:01:43]} 22. Qxc3 {[%clk 0:01:21]}  Qxa8 {[%clk 0:01:43]} 23. Qc7 {[%clk 0:01:19]}  Qb8 {[%clk 0:01:35]} 24. Rc1 {[%clk 0:01:15]}  Qxc7 {[%clk 0:01:14]} 25. Rxc7 {[%clk 0:01:14]}  Kd8 {[%clk 0:01:13]} 26. Ra7 {[%clk 0:01:13]}  Nb6 {[%clk 0:01:11]} 27. Rxa6 {[%clk 0:01:06]}  Nc8 {[%clk 0:01:03]} 28. Nd2 {[%clk 0:00:54]}  f5 {[%clk 0:00:59]} 29. h3 {[%clk 0:00:53]}  Kc7 {[%clk 0:00:55]} 30. a4 {[%clk 0:00:46]}  bxa4 {[%clk 0:00:52]} 31. Rxa4 {[%clk 0:00:45]}  f4 {[%clk 0:00:49]} 32. Bf2 {[%clk 0:00:45]}  g4 {[%clk 0:00:48]} 33. hxg4 {[%clk 0:00:45]}  Rh2 {[%clk 0:00:47]} 34. Rc4+ {[%clk 0:00:32]}  Kd7 {[%clk 0:00:41]} 35. Rb4 {[%clk 0:00:31]}  Rxg2 {[%clk 0:00:39]} 36. Be1 {[%clk 0:00:25]}  Rxg4 {[%clk 0:00:34]} 37. Kc2 {[%clk 0:00:24]}  Rg2 {[%clk 0:00:30]} 38. Kd3 {[%clk 0:00:23]}  d5 {[%clk 0:00:30]} 39. Rb7+ {[%clk 0:00:23]}  Kc6 {[%clk 0:00:30]} 40. Rb3 {[%clk 0:00:23]}  Nd6 {[%clk 0:00:29]} 41. Nf3 {[%clk 0:00:23]}  Bf6 {[%clk 0:00:24]} 42. Rc3+ {[%clk 0:00:21]}  Kd7 {[%clk 0:00:23]} 43. Ra3 {[%clk 0:00:22]}  Rxb2 {[%clk 0:00:20]} 44. Ra7+ {[%clk 0:00:21]}  Rb7 {[%clk 0:00:20]} 45. Ra6 {[%clk 0:00:22]}  Nc4 {[%clk 0:00:16]} 46. Ra8 {[%clk 0:00:20]}  Rb3+ {[%clk 0:00:16]} 47. Ke2 {[%clk 0:00:20]}  Rb2+ {[%clk 0:00:16]} 48. Kf1 {[%clk 0:00:20]}  Ne3+ {[%clk 0:00:15]} 49. Kg1 {[%clk 0:00:21]}  Nf5 {[%clk 0:00:14]} 50. Bf2 {[%clk 0:00:20]}  Rb3 {[%clk 0:00:13]} 51. Ra7+ {[%clk 0:00:20]}  Kc6 {[%clk 0:00:12]} 52. Ra6+ {[%clk 0:00:21]}  Kd7 {[%clk 0:00:12]} 53. Ra7+ {[%clk 0:00:21]}  Kc6 {[%clk 0:00:12]} 54. Ra6+ {[%clk 0:00:21]}  Rb6 {[%clk 0:00:13]} 55. Ra8 {[%clk 0:00:20]}  Nd6 {[%clk 0:00:13]} 56. Kg2 {[%clk 0:00:20]}  Ne4 {[%clk 0:00:13]} 57. Bh4 {[%clk 0:00:19]}  Rb2+ {[%clk 0:00:12]} 58. Kh3 {[%clk 0:00:20]}  Rb3 {[%clk 0:00:13]} 59. Kg4 {[%clk 0:00:20]}  Rxf3 {[%clk 0:00:12]} 60. Bxf6 {[%clk 0:00:20]}  Rf1 {[%clk 0:00:09]} 61. Be5 {[%clk 0:00:20]}  f3 {[%clk 0:00:09]} 62. Ra6+ {[%clk 0:00:20]}  Kb5 {[%clk 0:00:09]} 63. Rxe6 {[%clk 0:00:20]}  f2 {[%clk 0:00:09]} 64. Kf3 {[%clk 0:00:20]}  Rg1 {[%clk 0:00:10]} 0-1


[Site "https://www.chess.com"]

[Event "Titled Tuesday Blitz June 28 Early 2022"]
[White "Aldokhin, Ivan"]
[Black "Djokic, Mihailo"]
[WhiteFideId "24115720"]
[BlackFideId "976440"]
[WhiteElo "2231"]
[BlackElo "2255"]
[Result "1-0"]
[Round "06"]
[TimeControl "180+1"]
[Date "2022.06.28"]
[WhiteClock "0:00:04"]
[BlackClock "0:00:05"]

1. e4 {[%clk 0:03:00]}  c5 {[%clk 0:03:00]} 2. Nf3 {[%clk 0:03:01]}  d6 {[%clk 0:03:00]} 3. d4 {[%clk 0:03:02]}  cxd4 {[%clk 0:03:01]} 4. Nxd4 {[%clk 0:03:02]}  Nf6 {[%clk 0:03:01]} 5. Nc3 {[%clk 0:03:02]}  g6 {[%clk 0:03:02]} 6. Bc4 {[%clk 0:03:01]}  Bg7 {[%clk 0:03:02]} 7. h3 {[%clk 0:03:02]}  O-O {[%clk 0:03:02]} 8. Bb3 {[%clk 0:03:02]}  Nc6 {[%clk 0:03:03]} 9. Be3 {[%clk 0:03:03]}  Bd7 {[%clk 0:03:03]} 10. O-O {[%clk 0:03:03]}  Rc8 {[%clk 0:03:03]} 11. f4 {[%clk 0:03:03]}  Re8 {[%clk 0:02:26]} 12. Nf3 {[%clk 0:03:02]}  a6 {[%clk 0:02:08]} 13. e5 {[%clk 0:03:00]}  Nh5 {[%clk 0:01:53]} 14. Ng5 {[%clk 0:02:33]}  Rf8 {[%clk 0:01:46]} 15. Nxf7 {[%clk 0:02:15]}  Rxf7 {[%clk 0:01:45]} 16. e6 {[%clk 0:02:16]}  Be8 {[%clk 0:01:15]} 17. exf7+ {[%clk 0:02:14]}  Bxf7 {[%clk 0:01:15]} 18. Bxf7+ {[%clk 0:02:12]}  Kxf7 {[%clk 0:01:16]} 19. f5 {[%clk 0:02:12]}  Nf6 {[%clk 0:00:55]} 20. Nd5 {[%clk 0:02:12]}  Ne5 {[%clk 0:00:50]} 21. fxg6+ {[%clk 0:01:49]}  hxg6 {[%clk 0:00:46]} 22. Nxf6 {[%clk 0:01:47]}  Bxf6 {[%clk 0:00:45]} 23. Bg5 {[%clk 0:01:43]}  Qb6+ {[%clk 0:00:44]} 24. Kh1 {[%clk 0:01:41]}  Kg7 {[%clk 0:00:39]} 25. Bxf6+ {[%clk 0:01:39]}  exf6 {[%clk 0:00:40]} 26. b3 {[%clk 0:01:37]}  Rc3 {[%clk 0:00:36]} 27. Qd2 {[%clk 0:01:31]}  Qc6 {[%clk 0:00:36]} 28. Qf4 {[%clk 0:01:01]}  f5 {[%clk 0:00:26]} 29. Qh4 {[%clk 0:00:49]}  Rxc2 {[%clk 0:00:21]} 30. Rf2 {[%clk 0:00:46]}  Rxf2 {[%clk 0:00:14]} 31. Qxf2 {[%clk 0:00:45]}  Qc3 {[%clk 0:00:12]} 32. Rd1 {[%clk 0:00:42]}  Qc6 {[%clk 0:00:10]} 33. Qd4 {[%clk 0:00:39]}  Qc2 {[%clk 0:00:05]} 34. Qxd6 {[%clk 0:00:36]}  Nf7 {[%clk 0:00:06]} 35. Qd4+ {[%clk 0:00:33]}  Kg8 {[%clk 0:00:06]} 36. Re1 {[%clk 0:00:30]}  Qc6 {[%clk 0:00:04]} 37. Re7 {[%clk 0:00:20]}  Qc8 {[%clk 0:00:02]} 38. Qe3 {[%clk 0:00:07]}  Kf8 {[%clk 0:00:01]} 39. Re6 {[%clk 0:00:03]}  Kg7 {[%clk 0:00:01]} 40. Qe1 {[%clk 0:00:03]}  Kh7 {[%clk 0:00:02]} 41. Re7 {[%clk 0:00:04]}  Kg8 {[%clk 0:00:02]} 42. Qe6 {[%clk 0:00:03]}  Qxe6 {[%clk 0:00:02]} 43. Rxe6 {[%clk 0:00:02]}  Kg7 {[%clk 0:00:03]} 44. Rb6 {[%clk 0:00:03]}  Nd8 {[%clk 0:00:02]} 45. Rd6 {[%clk 0:00:03]}  Nc6 {[%clk 0:00:03]} 46. Rd7+ {[%clk 0:00:03]}  Kf6 {[%clk 0:00:03]} 47. Rxb7 {[%clk 0:00:04]}  Nd4 {[%clk 0:00:01]} 48. Rb6+ {[%clk 0:00:05]}  Ke5 {[%clk 0:00:01]} 49. Rxa6 {[%clk 0:00:06]}  g5 {[%clk 0:00:02]} 50. b4 {[%clk 0:00:05]}  Kd5 {[%clk 0:00:02]} 51. a4 {[%clk 0:00:04]}  Nc2 {[%clk 0:00:02]} 52. b5 {[%clk 0:00:04]}  Nb4 {[%clk 0:00:03]} 53. Ra8 {[%clk 0:00:04]}  Ke6 {[%clk 0:00:03]} 54. a5 {[%clk 0:00:05]}  Kd7 {[%clk 0:00:03]} 55. a6 {[%clk 0:00:05]}  Kc7 {[%clk 0:00:04]} 56. Rg8 {[%clk 0:00:05]}  g4 {[%clk 0:00:03]} 57. hxg4 {[%clk 0:00:04]}  fxg4 {[%clk 0:00:04]} 58. Rxg4 {[%clk 0:00:05]}  Kb6 {[%clk 0:00:05]} 59. Rxb4 {[%clk 0:00:04]} 1-0


[Site "https://www.chess.com"]

[Event "Titled Tuesday Blitz June 28 Early 2022"]
[White "Antonio, Jorge Carlos"]
[Black "Bintang, Rasyid A. Hidayat"]
[WhiteFideId "113190"]
[BlackFideId "7105355"]
[WhiteElo "2247"]
[BlackElo "2375"]
[Result "1-0"]
[Round "06"]
[TimeControl "180+1"]
[Date "2022.06.28"]
[WhiteClock "0:00:54"]
[BlackClock "0:01:26"]

1. e4 {[%clk 0:03:00]}  c5 {[%clk 0:03:00]} 2. Nc3 {[%clk 0:02:59]}  g6 {[%clk 0:02:58]} 3. g3 {[%clk 0:02:59]}  Nc6 {[%clk 0:02:57]} 4. Bg2 {[%clk 0:02:59]}  Bg7 {[%clk 0:02:57]} 5. f4 {[%clk 0:02:58]}  d6 {[%clk 0:02:53]} 6. Nf3 {[%clk 0:02:58]}  Nf6 {[%clk 0:02:53]} 7. d3 {[%clk 0:02:57]}  O-O {[%clk 0:02:52]} 8. a4 {[%clk 0:02:53]}  e5 {[%clk 0:02:47]} 9. O-O {[%clk 0:02:47]}  Re8 {[%clk 0:02:46]} 10. f5 {[%clk 0:02:44]}  d5 {[%clk 0:02:43]} 11. Nxd5 {[%clk 0:02:40]}  Nxd5 {[%clk 0:02:44]} 12. exd5 {[%clk 0:02:37]}  Qxd5 {[%clk 0:02:45]} 13. Ng5 {[%clk 0:02:34]}  Qd4+ {[%clk 0:02:43]} 14. Kh1 {[%clk 0:02:31]}  Bxf5 {[%clk 0:02:43]} 15. Rxf5 {[%clk 0:02:25]}  gxf5 {[%clk 0:02:41]} 16. Qh5 {[%clk 0:02:24]}  Qd7 {[%clk 0:02:37]} 17. Qxh7+ {[%clk 0:02:20]}  Kf8 {[%clk 0:02:37]} 18. Be3 {[%clk 0:02:16]}  Nd4 {[%clk 0:02:33]} 19. c3 {[%clk 0:02:14]}  f6 {[%clk 0:02:26]} 20. Nf3 {[%clk 0:01:51]}  Nxf3 {[%clk 0:02:24]} 21. Bxc5+ {[%clk 0:01:42]}  Kf7 {[%clk 0:02:21]} 22. Qh5+ {[%clk 0:01:38]}  Kg8 {[%clk 0:02:20]} 23. Bxf3 {[%clk 0:01:35]}  e4 {[%clk 0:01:51]} 24. dxe4 {[%clk 0:01:30]}  fxe4 {[%clk 0:01:51]} 25. Bd1 {[%clk 0:01:23]}  Re5 {[%clk 0:01:48]} 26. Bb3+ {[%clk 0:01:20]}  Re6 {[%clk 0:01:38]} 27. Qf5 {[%clk 0:01:10]}  Re8 {[%clk 0:01:35]} 28. Rd1 {[%clk 0:01:04]}  Qf7 {[%clk 0:01:33]} 29. Rd6 {[%clk 0:01:01]}  Rxd6 {[%clk 0:01:27]} 30. Bxf7+ {[%clk 0:00:59]}  Kxf7 {[%clk 0:01:28]} 31. Bxd6 {[%clk 0:00:59]}  Rd8 {[%clk 0:01:26]} 32. Bf4 {[%clk 0:00:54]} 1-0


[Site "https://www.chess.com"]

[Event "Titled Tuesday Blitz June 28 Early 2022"]
[White "Barp, Alberto"]
[Black "Soham Kamotra"]
[WhiteFideId "872555"]
[BlackFideId "46647490"]
[WhiteElo "2229"]
[BlackElo "2082"]
[Result "1-0"]
[Round "06"]
[TimeControl "180+1"]
[Date "2022.06.28"]
[WhiteClock "0:01:43"]
[BlackClock "0:00:06"]

1. Nf3 {[%clk 0:02:58]}  Nf6 {[%clk 0:03:00]} 2. g3 {[%clk 0:02:58]}  g6 {[%clk 0:02:59]} 3. Bg2 {[%clk 0:02:57]}  Bg7 {[%clk 0:03:00]} 4. O-O {[%clk 0:02:58]}  O-O {[%clk 0:03:00]} 5. c4 {[%clk 0:02:59]}  c6 {[%clk 0:03:00]} 6. b3 {[%clk 0:02:56]}  Ne4 {[%clk 0:02:56]} 7. d4 {[%clk 0:02:56]}  d5 {[%clk 0:02:57]} 8. Bb2 {[%clk 0:02:56]}  Bf5 {[%clk 0:02:52]} 9. Nh4 {[%clk 0:02:55]}  Be6 {[%clk 0:02:41]} 10. Qc2 {[%clk 0:02:48]}  f5 {[%clk 0:02:30]} 11. e3 {[%clk 0:02:45]}  Nd7 {[%clk 0:02:22]} 12. Nf3 {[%clk 0:02:44]}  g5 {[%clk 0:02:12]} 13. Nbd2 {[%clk 0:02:41]}  Bf6 {[%clk 0:02:02]} 14. Ne1 {[%clk 0:02:40]}  Nxd2 {[%clk 0:01:57]} 15. Qxd2 {[%clk 0:02:40]}  dxc4 {[%clk 0:01:58]} 16. bxc4 {[%clk 0:02:34]}  Bxc4 {[%clk 0:01:59]} 17. Nd3 {[%clk 0:02:35]}  Nb6 {[%clk 0:01:50]} 18. Rfd1 {[%clk 0:02:32]}  Bd5 {[%clk 0:01:49]} 19. f3 {[%clk 0:02:22]}  Nc4 {[%clk 0:01:49]} 20. Qe2 {[%clk 0:02:22]}  Nxb2 {[%clk 0:01:46]} 21. Nxb2 {[%clk 0:02:22]}  Qb6 {[%clk 0:01:40]} 22. Nc4 {[%clk 0:02:20]}  Qa6 {[%clk 0:01:40]} 23. Rac1 {[%clk 0:02:18]}  b5 {[%clk 0:01:18]} 24. Ne5 {[%clk 0:02:14]}  Bxe5 {[%clk 0:01:13]} 25. dxe5 {[%clk 0:02:15]}  Rac8 {[%clk 0:00:52]} 26. e4 {[%clk 0:02:14]}  fxe4 {[%clk 0:00:53]} 27. fxe4 {[%clk 0:02:14]}  Be6 {[%clk 0:00:33]} 28. Qh5 {[%clk 0:02:13]}  Qb6+ {[%clk 0:00:32]} 29. Kh1 {[%clk 0:02:12]}  Qe3 {[%clk 0:00:32]} 30. Re1 {[%clk 0:02:09]}  Qd2 {[%clk 0:00:28]} 31. Rcd1 {[%clk 0:02:08]}  Qxa2 {[%clk 0:00:26]} 32. Qxg5+ {[%clk 0:02:08]}  Kh8 {[%clk 0:00:26]} 33. Qxe7 {[%clk 0:02:08]}  Rf7 {[%clk 0:00:25]} 34. Rd8+ {[%clk 0:02:04]}  Rxd8 {[%clk 0:00:24]} 35. Qxd8+ {[%clk 0:02:05]}  Kg7 {[%clk 0:00:23]} 36. Qg5+ {[%clk 0:02:06]}  Kh8 {[%clk 0:00:22]} 37. Rd1 {[%clk 0:02:04]}  Qf2 {[%clk 0:00:20]} 38. Qh6 {[%clk 0:01:46]}  Bd7 {[%clk 0:00:06]} 39. e6 {[%clk 0:01:44]}  Bxe6 {[%clk 0:00:06]} 40. Rd8+ {[%clk 0:01:43]} 1-0


[Site "https://www.chess.com"]